bitfinex/quotes_ETHUSD_20240811
["timestamp","ask_amount","ask_price","bid_price","bid_amount"]
[1723371808791,2.3952,2693.0,2692.4,2.59982]
[1723371809198,2.3952,2693.0,2692.4,5.19967]
[1723371809425,5.19857,2693.1,2692.5,2.59981]
[1723371809628,2.3952,2693.2,2692.4,2.59982]
[1723371809827,2.59948,2692.9,2692.4,1.485338]
[1723371810921,2.59948,2692.9,2692.4,4.085188]
[1723371812602,2.59948,2692.9,2692.4,6.685038]
[1723371812796,5.19858,2693.1,2692.4,6.685018]
[1723371812993,2.59934,2693.0,2692.4,6.685018]
[1723371813194,2.59934,2693.0,2692.5,1.4035018]
[1723371815600,2.59926,2693.1,2692.5,1.4035018]
[1723371815932,5.19855,2693.1,2692.6,2.59971]
[1723371816131,5.19855,2693.1,2692.5,1.4035018]
[1723371816431,2.59949,2692.9,2692.3,7.35]
[1723371816655,5.59953,2692.8,2692.3,7.35]
[1723371817051,3.0,2692.8,2692.3,9.94998]
[1723371817260,5.59953,2692.8,2692.3,7.35]
[1723371817418,5.59953,2692.8,2692.3,9.94998]
[1723371817727,5.59953,2692.8,2692.3,11.435332]
[1723371818421,2.59972,2692.6,2692.2,2.3035]
[1723371818616,2.59972,2692.6,2692.0,9.95023]
[1723371819129,5.1991,2692.8,2692.2,2.60009]
[1723371819364,2.59953,2692.8,2692.2,2.60009]
[1723371819579,5.19911,2692.8,2692.2,2.60009]
[1723371819727,5.19913,2692.8,2692.2,3.855123]
[1723371820474,2.59953,2692.8,2692.2,3.855123]
[1723371820636,5.19911,2692.8,2692.2,3.855123]
[1723371821243,5.19911,2692.8,2692.2,3.855083]
[1723371821450,2.59953,2692.8,2692.2,3.855083]
[1723371821840,5.19878,2693.0,2692.4,2.59987]
[1723371822343,2.59944,2692.9,2692.4,2.59987]
[1723371823549,2.59939,2693.0,2692.3,0.3855083]
[1723371823755,2.59954,2692.8,2692.3,0.3855083]
[1723371824269,2.59939,2693.0,2692.3,0.3855083]
[1723371824433,2.59939,2693.0,2692.4,0.42405813]
[1723371824637,2.59966,2692.7,2692.1,2.60018]
[1723371824836,2.59966,2692.7,2692.2,2.60008]
[1723371825939,2.59948,2692.9,2692.2,2.60008]
[1723371826166,2.59948,2692.9,2692.3,2.59993]
[1723371826372,5.19897,2692.9,2692.3,2.59993]
[1723371826583,2.59952,2692.8,2692.3,2.59993]
[1723371826879,2.59948,2692.9,2692.3,2.859923]
[1723371828452,2.59948,2692.9,2692.3,5.459873]
[1723371828780,2.59948,2692.9,2692.3,2.859923]
[1723371829095,5.19898,2692.9,2692.3,2.859923]
[1723371829476,2.59948,2692.9,2692.3,5.459873]
[1723371829774,2.59953,2692.8,2692.3,2.859923]
[1723371830271,2.59948,2692.9,2692.4,2.5999]
[1723371830474,2.59948,2692.9,2692.4,3.1458823]
[1723371833684,2.5994,2693.0,2692.4,3.1458123]
[1723371835475,2.59928,2693.1,2692.5,4.87943]
[1723371835712,3.0,2693.0,2692.5,4.87943]
[1723371835915,1.696,2693.0,2692.5,4.87943]
[1723371836132,2.59928,2693.1,2692.5,4.87943]
[1723371836292,2.59928,2693.1,2692.6,2.59969]
[1723371836488,2.59928,2693.1,2692.5,2.2797]
[1723371836489,2.59928,2693.1,2692.4,2.59983]
[1723371836717,2.59948,2692.9,2692.4,0.259983]
[1723371836917,2.59948,2692.9,2692.3,2.59995]
[1723371837701,2.59929,2693.1,2692.4,2.2797]
[1723371837888,2.59929,2693.1,2692.6,2.59971]
[1723371838403,2.5992,2693.2,2692.6,5.947301]
[1723371838600,2.5992,2693.2,2692.6,3.347591]
[1723371838901,2.5992,2693.2,2692.6,5.947251]
[1723371839779,5.19842,2693.2,2692.6,3.347591]
[1723371840188,5.19839,2693.2,2692.6,3.347581]
[1723371840403,2.59919,2693.2,2692.6,3.347581]
[1723371840589,5.19838,2693.2,2692.6,3.347581]
[1723371840996,2.59919,2693.2,2692.6,3.347581]
[1723371841403,2.59919,2693.2,2692.6,5.947241]
[1723371841619,2.59919,2693.2,2692.7,0.5947241]
[1723371844549,7.61688,2693.6,2693.0,2.59928]
[1723371844754,2.59887,2693.5,2693.0,2.59928]
[1723371844935,2.59887,2693.5,2692.8,12.29884141]
[1723371844936,2.4193,2693.6,2692.8,7.35]
[1723371845249,2.59912,2693.3,2692.9,1.28935655]
[1723371845411,2.59903,2693.4,2692.9,3.88876655]
[1723371845619,5.19803,2693.4,2693.0,0.86393565]
[1723371845926,2.599,2693.4,2693.0,0.86393565]
[1723371846436,5.198,2693.4,2693.0,0.86393565]
[1723371846656,2.599,2693.4,2692.8,9.94945]
[1723371847418,5.198,2693.4,2692.8,9.94945]
[1723371847621,2.599,2693.4,2692.8,9.94945]
[1723371847948,2.599,2693.4,2692.8,12.54891]
[1723371848156,2.599,2693.4,2692.9,1.31436341]
[1723371848538,2.59887,2693.5,2692.9,3.91373341]
[1723371849511,2.59887,2693.5,2692.9,6.18883341]
[1723371851266,2.59895,2693.4,2692.9,3.58946341]
[1723371851833,2.59895,2693.4,2692.9,6.18887341]
[1723371852038,2.59895,2693.4,2693.0,1.35388734]
[1723371854057,2.59906,2693.3,2693.0,1.35388734]
[1723371854218,2.59906,2693.3,2692.9,2.2751]
[1723371854864,2.59895,2693.4,2692.9,2.2751]
[1723371855558,2.59904,2693.3,2692.9,2.2751]
[1723371855959,5.01811,2693.6,2692.9,2.2751]
[1723371856161,2.59895,2693.4,2692.9,3.757514]
[1723371856666,2.59895,2693.4,2692.9,6.356924]
[1723371859409,2.59895,2693.4,2692.9,2.2751]
[1723371861106,3.0,2693.3,2692.8,7.35]
[1723371861264,2.59942,2692.9,2692.8,7.35]
[1723371861465,2.59942,2692.9,2692.3,12.22503]
[1723371861726,2.59942,2692.9,2692.4,0.487503]
[1723371865604,5.19891,2692.9,2692.4,0.487503]
[1723371865941,2.59952,2692.8,2692.4,0.487503]
[1723371867754,2.59944,2692.9,2692.4,0.487503]
[1723371867906,5.19861,2693.1,2692.5,1.2712533]
[1723371868103,2.59935,2693.0,2692.5,1.2712533]
[1723371868343,2.59942,2692.9,2692.5,1.2712533]
[1723371870228,2.4193,2693.2,2692.6,0.43586463]
[1723371870448,2.59919,2693.2,2692.7,5.01199]
[1723371872440,5.19839,2693.2,2692.7,5.01199]
[1723371872741,2.59928,2693.1,2692.7,2.4124]
[1723371873579,2.59948,2692.9,2692.5,3.6836533]
[1723371873746,2.59948,2692.9,2692.5,2.4124]
[1723371874140,4.89949,2693.1,2692.5,2.4124]
[1723371874345,2.3002,2693.1,2692.5,2.4124]
[1723371874553,2.59948,2692.9,2692.5,2.4124]
[1723371875857,5.19898,2692.9,2692.4,0.487503]
[1723371876178,2.59929,2693.1,2692.5,6.2971493]
[1723371876378,2.59949,2692.9,2692.5,3.6973893]
[1723371876545,2.59949,2692.9,2692.5,2.4124]
[1723371880408,5.19897,2692.9,2692.5,2.4124]
[1723371880718,2.59958,2692.8,2692.5,2.4124]
[1723371881004,2.59948,2692.9,2692.5,2.4124]
[1723371881167,5.19896,2692.9,2692.5,2.4124]
[1723371881680,2.59948,2692.9,2692.5,2.4124]
[1723371882188,2.59972,2692.6,2692.3,7.35]
[1723371882768,2.59987,2692.5,2692.3,7.35]
[1723371883279,2.59991,2692.4,2692.3,7.35]
[1723371884969,2.60017,2692.2,2691.5,2.2859]
[1723371885183,2.4264,2692.2,2691.4,7.35]
[1723371885425,2.60086,2691.5,2691.2,2.2859]
[1723371885715,5.02683,2691.9,2690.9,2.2859]
[1723371885716,2.4264,2691.9,2690.9,2.2859]
[1723371886011,2.4264,2691.9,2690.8,7.35]
[1723371886012,2.60123,2691.1,2690.8,7.35]
[1723371886316,2.60136,2690.9,2690.8,7.35]
[1723371886609,2.60136,2690.9,2690.6,2.2859]
[1723371886817,2.60136,2690.9,2690.3,7.35]
[1723371886818,2.60148,2690.8,2690.3,2.2859]
[1723371886976,2.60148,2690.8,2690.4,0.488787]
[1723371888182,2.601,2691.3,2690.0,2.60218]
[1723371888183,2.6012,2691.1,2690.0,2.60218]
[1723371888416,2.60168,2690.6,2690.1,2.60212]
[1723371888573,2.60168,2690.6,2690.1,0.74902]
[1723371889589,2.60168,2690.6,2690.1,3.35114]
[1723371890879,2.60168,2690.6,2690.1,0.74902]
[1723371891107,2.6019,2690.4,2690.1,0.74902]
[1723371891373,2.6021,2690.2,2689.6,4.88844]
[1723371891611,2.60221,2690.1,2689.6,2.2859]
[1723371891773,2.60221,2690.1,2689.7,0.23143631]
[1723371892174,2.60223,2690.0,2689.7,0.23143631]
[1723371892983,2.60223,2690.0,2689.6,2.2859]
[1723371893219,5.20501,2689.8,2689.5,0.0284631]
[1723371893414,2.6025,2689.8,2689.5,0.0284631]
[1723371893577,5.205,2689.8,2689.5,0.0284631]
[1723371893776,2.6025,2689.8,2689.5,0.0284631]
[1723371894618,2.60253,2689.7,2689.5,0.0284631]
[1723371895110,2.60261,2689.6,2689.5,0.0284631]
[1723371895633,5.20522,2689.6,2689.5,0.0284631]
[1723371896337,5.968382,2689.6,2689.5,0.0284631]
[1723371902151,8.570992,2689.6,2689.5,0.0284631]
[1723371904347,11.049092,2689.6,2689.5,0.0284631]
[1723371904569,14.049092,2689.6,2689.5,0.0284631]
[1723371904740,16.651702,2689.6,2689.5,3.1e-06]
[1723371904924,16.651702,2689.6,2688.0,15.03414]
[1723371904925,2.60397,2688.2,2688.0,2.3869]
[1723371905229,2.6038,2688.4,2688.1,0.0354602]
[1723371905648,5.20766,2688.4,2688.1,0.0354602]
[1723371905862,2.6038,2688.4,2688.1,0.0354602]
[1723371906367,5.20766,2688.4,2688.1,0.0354602]
[1723371906573,2.60397,2688.2,2688.1,0.0354602]
[1723371906927,2.60397,2688.2,2687.6,7.35]
[1723371906928,2.60426,2687.9,2687.6,7.35]
[1723371907129,2.60426,2687.9,2687.7,0.03349253]
[1723371908079,2.60407,2688.1,2687.7,0.03349253]
[1723371908676,2.60416,2688.0,2687.7,0.03349253]
[1723371909842,2.60407,2688.1,2687.7,0.03349253]
[1723371910551,2.60407,2688.1,2687.6,6.88349253]
[1723371911373,2.60407,2688.1,2687.5,15.03464]
[1723371911374,2.60424,2688.0,2687.4,2.60473]
[1723371911784,2.60424,2688.0,2687.5,0.06088851]
[1723371912101,2.60455,2687.6,2687.5,0.06088851]
[1723371912410,2.60455,2687.6,2686.8,2.5175378]
[1723371912411,2.60483,2687.4,2686.8,2.5175378]
[1723371912906,2.60496,2687.2,2686.8,0.1306378]
[1723371913196,0.260496,2687.1,2686.8,0.1306378]
[1723371913362,2.60517,2687.0,2686.8,0.1306378]
[1723371913795,2.60523,2686.9,2686.8,0.1306378]
[1723371914202,5.21037,2687.0,2686.8,0.1306378]
[1723371914362,5.21046,2686.9,2686.8,0.1306378]
[1723371914567,2.60523,2686.9,2686.8,0.1306378]
[1723371915178,7.68856,2686.9,2686.8,0.1306378]
[1723371915726,10.68856,2686.9,2686.8,0.1306378]
[1723371915881,8.08333,2686.9,2686.8,0.1306378]
[1723371916080,0.768847,2687.0,2686.8,0.1306378]
[1723371916404,2.4781,2687.2,2686.8,0.1306378]
[1723371916405,2.605,2687.2,2686.8,0.1306378]
[1723371916590,2.60503,2687.1,2686.8,0.1306378]
[1723371916991,2.60481,2687.4,2686.8,2.7359478]
[1723371917302,2.60481,2687.4,2686.8,0.1306378]
[1723371917606,2.60485,2687.3,2686.8,0.1306378]
[1723371918212,2.60503,2687.2,2686.9,0.03380255]
[1723371918408,2.60485,2687.3,2686.9,0.03380255]
[1723371918610,5.20941,2687.5,2686.8,2.7359478]
[1723371918786,2.4781,2687.6,2686.8,2.7359478]
[1723371918787,2.60478,2687.4,2686.8,2.7359478]
[1723371918988,2.60478,2687.4,2686.9,0.03380255]
[1723371919209,5.08266,2687.6,2687.0,2.60513]
[1723371919210,2.60456,2687.6,2687.0,2.60513]
[1723371919515,2.60447,2687.7,2687.1,2.60502]
[1723371919712,3.0,2687.6,2687.1,2.60502]
[1723371920012,1.27781,2687.7,2687.2,2.63845421]
[1723371920219,5.60443,2687.8,2687.2,2.63845421]
[1723371920516,2.6042,2688.0,2687.4,2.60468]
[1723371920685,5.20845,2688.0,2687.4,2.60468]
[1723371920884,2.6042,2688.0,2687.5,0.03352045]
[1723371921128,2.6042,2688.0,2687.5,2.63816045]
[1723371921129,0.520821,2688.0,2687.5,2.63816045]
[1723371921414,2.60401,2688.2,2687.5,2.63816045]
[1723371921784,3.0,2688.1,2687.5,2.63816045]
[1723371921981,5.60412,2688.1,2687.5,2.63816045]
[1723371922183,2.6042,2688.0,2687.5,0.03352045]
[1723371922501,5.20844,2688.0,2687.5,0.03352045]
[1723371922709,2.6042,2688.0,2687.4,2.60467]
[1723371922889,2.6042,2688.0,2687.6,0.0334355]
[1723371923089,3.425021,2688.0,2687.5,0.03345216]
[1723371923303,3.425021,2688.0,2687.4,2.60467]
[1723371923304,3.425021,2688.0,2687.7,0.03341885]
[1723371923497,2.6042,2688.0,2687.6,0.0334355]
[1723371923699,7.3,2688.4,2688.0,2.60415]
[1723371923907,2.60358,2688.6,2688.0,3.11525522]
[1723371924219,2.60358,2688.6,2688.1,0.03559638]
[1723371924398,9.90353,2688.7,2688.1,2.63958638]
[1723371924736,1.949,2688.6,2688.1,2.6487339]
[1723371925207,2.60353,2688.7,2688.1,2.6487339]
[1723371925532,2.60353,2688.7,2688.1,0.0447439]
[1723371925751,2.60353,2688.7,2688.1,2.6488039]
[1723371926108,3.0,2688.6,2688.1,2.6488039]
[1723371926541,2.60331,2688.9,2688.2,2.60391]
[1723371926920,2.60331,2688.9,2688.3,0.05440014]
[1723371927107,3.372824,2688.9,2688.3,0.05440014]
[1723371927552,3.372824,2688.9,2686.9,3.57585384]
[1723371927553,2.4887,2688.8,2686.9,3.57585384]
[1723371927711,2.6043,2687.9,2686.7,2.6054]
[1723371927911,0.26043,2687.8,2687.1,2.60495]
[1723371928114,2.4887,2688.1,2687.1,2.60495]
[1723371928744,2.60471,2687.5,2686.9,5.07872]
[1723371928902,3.125627,2687.5,2686.9,5.07872]
[1723371929349,3.125627,2687.5,2686.9,2.4735]
[1723371929350,2.60476,2687.4,2686.9,2.4735]
[1723371929652,3.125627,2687.5,2686.6,2.4735]
[1723371929653,2.605,2687.2,2686.6,2.4735]
[1723371929858,0.520985,2687.2,2686.6,2.4735]
[1723371930142,2.60523,2686.9,2686.3,2.4735]
[1723371930342,2.60522,2687.0,2686.3,5.07925]
[1723371930551,3.520917,2687.5,2686.7,2.60536]
[1723371930552,2.60479,2687.4,2686.7,2.60536]
[1723371930709,3.0,2687.3,2686.7,2.60536]
[1723371931342,3.0,2687.3,2686.5,2.60555]
[1723371931500,1.1218997,2687.4,2686.3,2.4735]
[1723371931501,2.6048,2687.4,2686.3,2.4735]
[1723371931703,2.60523,2686.9,2686.3,5.0793]
[1723371932004,2.60509,2687.1,2686.4,2.60562]
[1723371932210,2.60503,2687.1,2686.4,2.60562]
[1723371932413,2.865663,2687.0,2686.4,2.60567]
[1723371932631,2.60498,2687.2,2686.6,2.60552]
[1723371933052,5.21,2687.2,2686.6,2.60552]
[1723371933320,2.60499,2687.2,2686.4,2.60563]
[1723371933585,2.6052,2687.0,2686.4,5.21128]
[1723371933787,2.6052,2687.0,2685.9,2.60617]
[1723371933788,2.6043,2687.9,2686.9,2.4735]
[1723371933993,0.30909568,2688.1,2687.3,2.60475]
[1723371934190,0.30909568,2688.1,2687.5,2.60458]
[1723371934191,2.91323568,2688.1,2687.5,2.60458]
[1723371934350,2.60403,2688.2,2687.5,2.60458]
[1723371934557,2.60403,2688.2,2687.6,2.60449]
[1723371934757,2.60394,2688.3,2687.7,2.60443]
[1723371935691,0.509242,2688.4,2687.5,2.60461]
[1723371935692,2.60406,2688.2,2687.5,2.60461]
[1723371935900,2.60408,2688.1,2687.5,2.60461]
[1723371936407,2.60387,2688.3,2687.7,2.60438]
[1723371936555,1.1205632,2688.3,2687.8,2.60435]
[1723371936759,0.509242,2688.4,2687.9,2.6042]
[1723371936968,2.60375,2688.5,2687.9,2.6042]
[1723371937174,0.260375,2688.4,2687.9,2.6042]
[1723371938413,2.864205,2688.4,2687.7,2.60438]
[1723371938704,2.60389,2688.3,2687.7,2.60438]
[1723371938903,2.60389,2688.3,2687.6,2.60453]
[1723371938904,2.60408,2688.1,2687.6,2.60453]
[1723371939108,2.60408,2688.1,2687.5,2.60456]
[1723371939320,2.60408,2688.1,2687.4,2.4735]
[1723371939321,2.60408,2688.1,2687.4,5.07823]
[1723371939470,2.60433,2687.9,2687.4,2.4735]
[1723371939671,2.7751265,2688.3,2687.1,2.60499]
[1723371939672,2.60471,2687.5,2687.1,2.4735]
[1723371939912,2.60471,2687.5,2687.0,6.88349253]
[1723371940095,2.60492,2687.3,2686.8,2.6041378]
[1723371940411,2.60492,2687.3,2686.8,0.1306378]
[1723371940412,3.125877,2687.3,2686.8,0.1306378]
[1723371940581,2.60511,2687.1,2686.8,0.1306378]
[1723371941282,2.60489,2687.3,2686.8,0.1306378]
[1723371942008,2.60499,2687.2,2686.8,0.1306378]
[1723371942197,2.60505,2687.1,2686.8,0.1306378]
[1723371942406,2.60522,2687.0,2686.8,0.1306378]
[1723371942720,0.260489,2687.3,2686.8,0.1306378]
[1723371942721,2.865359,2687.3,2686.8,0.1306378]
[1723371943377,2.60505,2687.1,2686.8,0.1306378]
[1723371944278,2.865359,2687.3,2686.8,0.1306378]
[1723371944474,2.60498,2687.2,2686.8,0.1306378]
[1723371944675,2.60468,2687.5,2686.8,2.7359478]
[1723371944895,2.60468,2687.5,2686.9,2.60522]
[1723371946200,2.60474,2687.4,2686.9,2.60522]
[1723371946409,2.60474,2687.4,2686.8,0.1306378]
[1723371946578,2.60474,2687.4,2686.8,3.27004158]
[1723371946778,2.60411,2688.1,2687.3,2.60477]
[1723371947017,2.2764,2688.2,2687.0,2.424]
[1723371947018,2.2764,2688.2,2687.0,5.0291]
[1723371947318,2.60438,2687.8,2687.0,5.0291]
[1723371947703,2.60438,2687.8,2687.1,2.60503]
[1723371948113,2.60453,2687.7,2687.0,5.02907]
[1723371948414,2.60463,2687.6,2687.0,5.02907]
[1723371948627,2.60462,2687.6,2687.0,7.63414]
[1723371948918,2.60439,2687.8,2687.0,7.63414]
[1723371948919,2.60448,2687.7,2687.1,2.60498]
[1723371949103,2.60456,2687.6,2687.0,6.49389703]
[1723371949305,2.6044,2687.8,2687.2,2.60486]
[1723371949618,2.6042,2688.0,2687.3,2.60478]
[1723371949835,2.60426,2687.9,2687.3,2.60478]
[1723371950116,2.6042,2688.0,2687.3,2.60477]
[1723371950280,0.25628265,2688.1,2687.4,2.424]
[1723371950480,0.2864265,2688.3,2687.1,2.424]
[1723371950721,2.60458,2687.6,2687.1,2.424]
[1723371950979,4.88059,2688.0,2687.1,2.424]
[1723371951302,2.60476,2687.4,2686.9,6.88349253]
[1723371951619,2.60466,2687.5,2686.8,7.7651478]
[1723371951794,2.6045,2687.7,2686.8,5.1598678]
[1723371952002,2.6045,2687.7,2687.0,2.60507]
[1723371952210,2.604,2688.2,2687.1,2.424]
[1723371952449,2.60519,2687.0,2686.8,0.20504427]
[1723371952619,2.2764,2688.1,2686.8,0.1306378]
[1723371952620,2.2764,2687.6,2686.8,0.1306378]
[1723371952940,2.6049,2687.3,2686.8,0.1306378]
[1723371953531,0.47940671,2688.1,2686.9,2.424]
[1723371953845,0.47940671,2688.1,2686.8,0.1306378]
[1723371953846,2.60411,2688.1,2687.4,2.60474]
[1723371954008,2.60411,2688.1,2687.5,2.49840855]
[1723371954332,0.77708265,2688.1,2687.7,2.60444]
[1723371954547,2.60372,2688.5,2687.6,0.07440642]
[1723371954830,2.60372,2688.5,2687.5,2.424]
[1723371954831,2.60368,2688.5,2687.5,2.424]
[1723371955030,2.60404,2688.2,2687.5,5.02863]
[1723371955595,2.60394,2688.3,2687.7,2.60439]
[1723371956023,2.60378,2688.4,2687.8,2.60435]
[1723371956237,2.60364,2688.6,2687.9,2.60426]
[1723371956477,3.25370861,2689.6,2688.1,2.424]
[1723371956624,2.60294,2689.3,2688.2,2.60392]
[1723371956963,2.60294,2689.3,2687.6,2.60449]
[1723371956964,2.60361,2688.6,2687.8,2.60429]
[1723371957125,4.87973,2688.9,2687.8,2.60429]
[1723371957321,2.60384,2688.4,2687.8,2.60429]
[1723371958161,2.60384,2688.4,2687.8,2.60427]
[1723371958319,2.6037,2688.5,2687.9,2.60423]
[1723371958745,2.83108,2688.8,2688.0,2.60414]
[1723371958935,3.0,2688.7,2688.0,2.60414]
[1723371959358,2.60359,2688.6,2688.0,2.60414]
[1723371959723,2.60406,2688.2,2687.6,2.424]
[1723371959925,2.60392,2688.3,2687.7,2.60441]
[1723371960120,2.60383,2688.4,2687.7,5.20877]
[1723371960325,2.60383,2688.4,2687.7,2.60436]
[1723371960525,2.60403,2688.2,2687.6,5.02852]
[1723371961751,2.60394,2688.3,2687.7,5.20881]
[1723371962077,2.60394,2688.3,2687.8,2.60434]
[1723371962263,2.60383,2688.4,2687.8,2.60434]
[1723371962436,2.60408,2688.1,2687.6,2.424]
[1723371962632,2.60413,2688.1,2687.6,2.424]
[1723371963720,2.6039,2688.3,2687.8,2.60434]
[1723371963876,2.60397,2688.2,2687.6,2.424]
[1723371964271,2.60407,2688.1,2687.6,2.424]
[1723371964489,2.60407,2688.1,2687.6,5.02851]
[1723371964689,5.20785,2688.3,2687.7,2.60445]
[1723371964921,2.60413,2688.1,2687.5,2.60463]
[1723371965277,2.5929189,2688.4,2687.3,2.60477]
[1723371965477,2.60428,2687.9,2687.3,2.60477]
[1723371965712,2.60428,2687.9,2687.3,5.20955]
[1723371966231,2.60407,2688.1,2687.3,3.360505]
[1723371966371,2.60398,2688.2,2687.5,2.60457]
[1723371966576,2.60391,2688.3,2687.3,0.755735]
[1723371966770,2.5929189,2688.4,2687.7,2.60438]
[1723371966771,5.1967089,2688.4,2687.7,2.60438]
[1723371967018,5.1967089,2688.4,2687.8,2.6043]
[1723371967174,7.3,2688.5,2688.0,2.3478]
[1723371967374,4.88002,2688.7,2688.1,2.604]
[1723371967375,2.60352,2688.7,2688.1,2.604]
[1723371968112,0.260352,2688.7,2687.7,2.60437]
[1723371968415,2.2765,2688.6,2687.7,2.60437]
[1723371968712,2.60384,2688.4,2687.7,2.60437]
[1723371969599,2.2765,2688.6,2687.6,9.23129253]
[1723371969812,2.60412,2688.1,2687.6,6.88349253]
[1723371970673,2.60393,2688.3,2687.6,6.88349253]
[1723371970886,2.60407,2688.1,2687.5,2.60457]
[1723371971326,2.60407,2688.1,2687.3,9.23129253]
[1723371971327,2.60422,2688.0,2687.4,2.60472]
[1723371971525,2.60422,2688.0,2687.3,11.83609253]
[1723371971526,2.60427,2687.9,2687.3,14.44086253]
[1723371972002,2.60427,2687.9,2687.3,11.83606253]
[1723371972203,2.60427,2687.9,2687.3,14.44083253]
[1723371972387,2.60427,2687.9,2687.3,14.44084253]
[1723371972585,2.60427,2687.9,2687.3,11.83606253]
[1723371972826,2.60436,2687.8,2687.3,11.83606253]
[1723371973492,4.88061,2688.1,2687.3,9.23129253]
[1723371973698,4.88061,2688.1,2687.6,2.60453]
[1723371974394,2.83138,2688.5,2687.9,2.60426]
[1723371974795,10.48361,2688.7,2687.8,2.3478]
[1723371974999,2.2765,2688.7,2688.1,2.60398]
[1723371975307,2.60341,2688.8,2688.2,2.6039]
[1723371975495,0.748326,2688.8,2688.3,2.60381]
[1723371975826,3.351716,2688.8,2688.2,2.6039]
[1723371976000,3.351716,2688.8,2688.2,5.20782]
[1723371976207,0.748326,2688.8,2688.3,2.60387]
[1723371976899,2.60364,2688.6,2687.8,2.3478]
[1723371977248,2.9387376,2688.7,2688.0,2.60409]
[1723371977531,2.60357,2688.7,2688.1,2.60406]
[1723371978051,2.2765,2688.8,2687.8,2.3478]
[1723371978202,2.60383,2688.4,2687.8,2.3478]
[1723371978406,2.60403,2688.2,2687.6,6.88349253]
[1723371978610,4.88013,2688.6,2687.9,2.60425]
[1723371978810,2.60368,2688.5,2687.9,2.60425]
[1723371979123,5.20744,2688.5,2687.9,2.60425]
[1723371979431,5.20744,2688.5,2687.9,2.60424]
[1723371979432,3.352164,2688.4,2687.9,2.60424]
[1723371980826,2.60393,2688.3,2687.7,2.60442]
[1723371981024,2.60393,2688.3,2687.4,2.3478]
[1723371981025,2.60416,2688.0,2687.4,2.3478]
[1723371981226,2.60429,2687.9,2687.3,3.52790925]
[1723371981419,2.60407,2688.1,2687.3,0.92312925]
[1723371981618,3.352224,2688.4,2687.8,2.60428]
[1723371982158,9.5765,2688.6,2688.1,2.60401]
[1723371982350,2.60349,2688.7,2688.2,2.60396]
[1723371982658,5.20704,2688.7,2688.1,2.60406]
[1723371982960,2.60335,2688.9,2688.3,2.60378]
[1723371983251,5.20673,2688.9,2688.3,2.60378]
[1723371983418,2.60335,2688.9,2688.2,2.60395]
[1723371983619,2.60344,2688.8,2688.2,2.60395]
[1723371983831,2.2765,2689.0,2688.2,2.6039]
[1723371984047,2.50415,2689.0,2688.3,2.60382]
[1723371984344,2.60331,2688.9,2688.3,2.60382]
[1723371984559,2.50415,2689.0,2688.4,2.60374]
[1723371984921,5.1074,2689.0,2688.4,2.60374]
[1723371985131,0.771056,2688.9,2688.4,2.60374]
[1723371985658,0.771056,2688.9,2688.5,2.60367]
[1723371985990,5.10734,2689.0,2688.5,2.60367]
[1723371986181,5.10734,2689.0,2688.4,2.60374]
[1723371986355,2.50415,2689.0,2688.4,2.60372]
[1723371986559,2.3483,2689.3,2688.6,2.60351]
[1723371986866,2.60275,2689.5,2688.9,2.60323]
[1723371987090,3.123281,2689.5,2688.9,2.60323]
[1723371987380,3.123281,2689.5,2688.8,2.60331]
[1723371987381,2.60286,2689.4,2688.8,2.60331]
[1723371987582,3.123281,2689.5,2688.9,2.60322]
[1723371987748,2.60298,2689.3,2688.8,2.60331]
[1723371988084,2.3483,2689.3,2688.4,2.60375]
[1723371988380,2.60332,2688.9,2688.3,4.92631]
[1723371988689,2.60329,2689.0,2688.2,2.60388]
[1723371988690,2.6034,2688.8,2688.2,2.60388]
[1723371988897,2.60349,2688.7,2688.2,2.60388]
[1723371989252,4.9517,2688.8,2688.3,2.60386]
[1723371989447,4.9517,2688.8,2688.2,2.60388]
[1723371989745,5.707193,2688.8,2688.2,5.20779]
[1723371989962,5.707193,2688.8,2688.2,2.60388]
[1723371990162,0.755493,2688.8,2688.4,2.60377]
[1723371990361,2.3483,2689.1,2688.4,2.6037]
[1723371990565,2.6032,2689.0,2688.5,2.60367]
[1723371990761,2.3483,2689.1,2688.6,2.60356]
[1723371990962,3.0,2689.7,2688.7,2.67785726]
[1723371990963,3.1500081,2689.4,2688.7,2.67785726]
[1723371991165,2.60292,2689.3,2688.7,2.60343]
[1723371992187,2.60301,2689.2,2688.5,2.60359]
[1723371992492,0.260301,2689.1,2688.5,2.60359]
[1723371992701,2.60295,2689.3,2688.7,2.60343]
[1723371993055,2.60303,2689.2,2688.7,2.60343]
[1723371993292,0.260303,2689.1,2688.5,5.20718]
[1723371993535,2.863433,2689.1,2688.5,2.60359]
[1723371993739,0.260303,2689.1,2688.6,2.60353]
[1723371994333,2.60303,2689.2,2688.6,2.60353]
[1723371994540,2.60303,2689.2,2688.5,2.60359]
[1723371994719,4.95147,2689.1,2688.5,2.60359]
[1723371995425,2.60321,2689.0,2688.5,2.60359]
[1723371995946,2.60321,2689.0,2688.4,2.60376]
[1723371996094,2.60321,2689.0,2688.3,2.60382]
[1723371996095,2.60321,2689.0,2688.5,2.60368]
[1723371996294,3.358666,2689.0,2688.5,2.60368]
[1723371996732,0.755456,2689.0,2688.6,2.60357]
[1723371998244,4.95113,2689.4,2688.8,2.6033]
[1723371998394,4.95113,2689.4,2688.9,2.60328]
[1723371998606,4.95113,2689.4,2688.8,2.6033]
[1723371999027,7.55399,2689.4,2688.6,2.60352]
[1723371999253,3.098033,2689.3,2688.7,2.60343]
[1723371999550,3.4079163,2689.2,2688.7,2.60343]
[1723372000660,0.8049163,2689.2,2688.8,2.60334]